bitfinex-derivatives/quotes_ETHF0:USTF0_20250501
["timestamp","ask_amount","ask_price","bid_price","bid_amount"]
[1746131542575,1.08317,1845.6,1845.5,3.621]
[1746131542775,6.66557,1845.6,1845.5,3.621]
[1746131545171,2.3746,1845.6,1845.5,3.621]
[1746131545377,6.92113,1845.7,1845.6,1.08317]
[1746131545569,9.37213,1845.7,1845.6,1.08317]
[1746131545976,3.53413,1845.7,1845.6,1.08317]
[1746131547066,2.451,1845.7,1845.2,41.6147]
[1746131547272,1.08328,1845.4,1845.3,4.70534]
[1746131547678,2.68058,1845.5,1845.4,1.08328]
[1746131547879,2.68058,1845.5,1845.4,2.80578]
[1746131548475,1.08322,1845.5,1845.4,1.7225]
[1746131548871,1.08322,1845.5,1845.4,2.80573]
[1746131549177,2.68052,1845.5,1845.4,1.7225]
[1746131549379,1.08328,1845.4,1845.3,4.70532]
[1746131549677,2.68058,1845.4,1845.3,4.70534]
[1746131550377,5.88838,1845.4,1845.3,3.622]
[1746131550572,1.08334,1845.3,1845.2,1.89808]
[1746131550880,3.53194,1845.3,1845.2,1.89808]
[1746131551877,3.53194,1845.3,1845.2,5.50108]
[1746131552078,0.8262,1845.3,1845.2,5.50108]
[1746131552781,10.12914,1845.4,1845.3,1.08334]
[1746131552975,10.12914,1845.4,1845.3,2.68344]
[1746131553373,11.81234,1845.4,1845.3,2.68344]
[1746131553880,8.60454,1845.4,1845.3,2.68344]
[1746131554082,5.838,1845.4,1845.3,2.68344]
[1746131554381,5.838,1845.4,1845.3,3.54384]
[1746131554784,2.76637,1845.6,1845.5,1.08322]
[1746131554983,1.6832,1845.6,1845.5,1.08322]
[1746131555182,1.6832,1845.6,1845.5,4.68622]
[1746131556586,2.76637,1845.6,1845.5,4.68622]
[1746131556882,1.6832,1845.6,1845.5,4.68622]
[1746131557284,2.76637,1845.6,1845.5,4.68622]
[1746131557689,1.6832,1845.6,1845.5,4.68622]
[1746131557983,4.0741,1845.7,1845.6,1.08317]
[1746131558179,5.15721,1845.7,1845.6,0.8141]
[1746131558376,6.84711,1845.7,1845.6,0.8141]
[1746131558574,1.08317,1845.6,1845.5,3.603]
[1746131558774,2.77307,1845.6,1845.5,3.603]
[1746131559685,2.77307,1845.6,1845.2,1.6702]
[1746131559686,1.08334,1845.3,1845.2,3.603]
[1746131559885,4.29114,1845.3,1845.2,3.603]
[1746131560085,4.29114,1845.3,1845.2,4.6864]
[1746131560479,5.08374,1845.3,1845.2,4.6864]
[1746131561789,5.08374,1845.3,1845.2,3.603]
[1746131562279,1.0834,1845.2,1845.1,1.6702]
[1746131562478,2.7477,1845.2,1845.1,1.6702]
[1746131562786,2.7477,1845.2,1845.1,5.2732]
[1746131564091,2.7477,1845.2,1845.1,6.35661]
[1746131564890,5.08375,1845.3,1845.2,1.0834]
[1746131565085,5.08375,1845.3,1845.2,1.5735]
[1746131565293,5.08375,1845.3,1845.2,2.6569]
[1746131566288,0.8132,1845.5,1845.4,1.08328]
[1746131566486,1.08327,1845.5,1845.4,1.08328]
[1746131566687,1.08327,1845.5,1845.4,6.25978]
[1746131567388,11.82992,1845.6,1845.5,1.08322]
[1746131567589,5.99192,1845.6,1845.5,2.65672]
[1746131568892,5.99192,1845.6,1845.5,1.5735]
[1746131569286,1.08322,1845.5,1845.4,4.68626]
[1746131569487,2.68422,1845.5,1845.4,4.68626]
[1746131569690,2.68422,1845.5,1845.4,6.28326]
[1746131569987,3.2078,1845.6,1845.5,1.08322]
[1746131570200,3.2078,1845.6,1845.5,2.68022]
[1746131570989,4.29097,1845.6,1845.5,2.68022]
[1746131571387,3.2078,1845.6,1845.5,2.68022]
[1746131571888,4.29097,1845.6,1845.5,2.68022]
[1746131572087,5.99747,1845.6,1845.5,1.597]
[1746131572295,5.99747,1845.6,1845.5,2.68022]
[1746131572684,5.99747,1845.6,1845.5,1.597]
[1746131572888,5.99747,1845.6,1845.5,2.68022]
[1746131575095,5.99747,1845.6,1845.5,1.597]
[1746131575297,1.08322,1845.5,1845.4,4.68626]
[1746131575495,2.70802,1845.5,1845.4,4.68626]
[1746131575695,1.6248,1845.5,1845.4,45.48626]
[1746131575895,1.6248,1845.5,1845.4,47.22326]
[1746131576599,2.70802,1845.5,1845.4,6.42326]
[1746131577001,2.70802,1845.5,1845.4,3.603]
[1746131577200,3.57222,1845.5,1845.4,3.603]
[1746131577898,3.57222,1845.5,1845.4,4.68628]
[1746131578293,2.70802,1845.5,1845.4,4.68628]
[1746131580001,1.6248,1845.5,1845.4,4.68628]
[1746131580203,4.29097,1845.6,1845.5,1.08322]
[1746131580500,4.29097,1845.6,1845.5,3.59142]
[1746131580695,5.99367,1845.6,1845.5,3.59142]
[1746131581195,5.99367,1845.6,1845.5,1.08322]
[1746131581401,1.08334,1845.4,1845.3,3.578]
[1746131581594,4.29114,1845.4,1845.3,3.578]
[1746131581794,4.29114,1845.4,1845.3,4.66134]
[1746131581996,1.08334,1845.3,1845.2,3.578]
[1746131582195,3.57874,1845.3,1845.2,3.578]
[1746131584990,1.08332,1845.4,1845.3,1.0833]
[1746131585193,5.838,1845.5,1845.4,1.08328]
[1746131585397,5.838,1845.5,1845.4,1.89628]
[1746131585604,8.55345694,1845.6,1845.5,1.08322]
[1746131585804,9.63662694,1845.6,1845.5,2.67432]
[1746131586300,8.55345694,1845.6,1845.5,2.67432]
[1746131586496,5.34565694,1845.6,1845.5,11.25232]
[1746131588007,6.42882694,1845.6,1845.5,6.25232]
[1746131588202,8.55345694,1845.6,1845.0,44.378]
[1746131588502,1.08333,1845.4,1845.3,1.08331]
[1746131588698,1.90367,1845.5,1845.4,1.08328]
[1746131588900,4.29101,1845.6,1845.5,1.08322]
[1746131589104,1.08321,1845.6,1845.5,1.08322]
[1746131589298,1.08321,1845.6,1845.5,3.56022]
[1746131589499,1.08321,1845.6,1845.5,2.477]
[1746131589804,1.08321,1845.6,1845.5,0.8151]
[1746131590004,1.08321,1845.6,1845.4,4.66127]
[1746131590005,1.08322,1845.5,1845.4,3.578]
[1746131590205,3.61532,1845.5,1845.4,3.578]
[1746131591109,1.08328,1845.4,1845.3,7.18606535]
[1746131591301,6.84278,1845.4,1845.3,10.76406535]
[1746131591803,6.84278,1845.4,1845.3,11.84740535]
[1746131592102,5.7595,1845.4,1845.3,11.84740535]
[1746131592307,6.84278,1845.4,1845.3,13.52340535]
[1746131592908,5.7595,1845.4,1845.3,13.52340535]
[1746131593110,3.2078,1845.4,1845.3,13.52340535]
[1746131593811,4.29108,1845.4,1845.3,13.52340535]
[1746131594010,4.29108,1845.4,1845.3,6.33734]
[1746131595810,3.2078,1845.4,1845.3,6.33734]
[1746131596013,4.29108,1845.4,1845.3,6.33734]
[1746131596315,3.2078,1845.4,1845.3,6.33734]
[1746131596605,4.29108,1845.4,1845.3,3.578]
[1746131596811,1.0834,1845.2,1845.1,1.89853]
[1746131597013,1.0834,1845.2,1845.1,3.578]
[1746131597707,6.7632,1845.2,1845.1,3.578]
[1746131598013,1.08358,1844.9,1844.8,21.53325526]
[1746131598305,4.29138,1844.9,1844.8,17.95425526]
[1746131598810,6.81208,1844.9,1844.8,17.95425526]
[1746131600010,6.81208,1844.9,1844.8,10.76818991]
[1746131602905,1.08363,1844.8,1844.7,10.81559832]
[1746131603414,6.08363,1844.8,1844.7,10.81559832]
[1746131604224,6.92163,1844.8,1844.7,10.81559832]
[1746131605313,6.92163,1844.8,1844.6,17.75807681]
[1746131605314,2.70948,1844.6,1844.0,7.2250974]
[1746131605515,3.2078,1844.2,1844.1,2.75222]
[1746131605709,4.29176,1844.3,1844.2,1.08393]
[1746131606108,1.08396,1844.3,1844.2,1.08393]
[1746131606316,1.08396,1844.3,1844.2,4.66293]
[1746131607018,4.29176,1844.3,1844.2,4.66293]
[1746131607212,1.08396,1844.3,1844.2,4.66293]
[1746131607616,2.7094,1844.6,1844.3,1.08388]
[1746131607617,1.0839,1844.4,1844.3,1.08388]
[1746131607819,1.08393,1844.3,1844.2,4.66294]
[1746131608319,4.29173,1844.4,1844.3,1.08393]
[1746131608520,1.08393,1844.4,1844.3,1.08393]
[1746131609020,3.2078,1844.6,1844.2,2.70995]
[1746131609221,4.29157,1844.6,1844.5,1.08381]
[1746131609417,3.2078,1844.6,1844.5,1.08381]
[1746131609621,15.29880445,1845.1,1844.5,2.70942]
[1746131609622,3.2078,1845.0,1844.5,2.70942]
[1746131609823,1.08369,1844.8,1844.7,1.08366]
[1746131610210,1.08369,1844.8,1844.4,2.70965]
[1746131610211,1.08385,1844.5,1844.4,1.08382]
[1746131611123,4.29161,1844.6,1844.5,1.08381]
[1746131611418,4.29155,1844.6,1844.5,1.08381]
[1746131611720,3.2078,1844.6,1844.5,1.08381]
[1746131612226,4.29155,1844.6,1844.5,4.73781]
[1746131612718,3.2078,1844.6,1844.5,4.73781]
[1746131612920,1.08374,1844.7,1844.5,4.73781]
[1746131613126,1.08374,1844.7,1844.6,1.08371]
[1746131613420,4.29148,1844.8,1844.7,1.08369]
[1746131613724,1.08376,1844.7,1844.6,1.08372]
[1746131614026,4.29148,1844.8,1844.7,1.08369]
[1746131614522,2.70869,1845.1,1844.8,1.08361]
[1746131614723,1.08364,1844.9,1844.8,3.655]
[1746131614919,4.29144,1844.9,1844.8,3.655]
[1746131617028,4.29144,1844.9,1844.4,5.4193]
[1746131617029,1.08381,1844.5,1844.4,3.654]
[1746131617334,1.08381,1844.5,1844.4,4.73787]
[1746131617632,1.08378,1844.6,1844.5,1.08375]
[1746131617832,1.08374,1844.7,1844.6,1.08369]
[1746131618227,1.0838,1844.6,1844.5,1.08375]
[1746131619535,1.08372,1844.7,1844.6,1.08369]
[1746131619834,1.08372,1844.7,1844.6,4.73869]
[1746131620227,4.29152,1844.7,1844.6,4.73875]
[1746131621136,4.29152,1844.7,1844.6,3.655]
[1746131622230,9.0458,1844.7,1844.1,3.2078]
[1746131622436,1.08399,1844.2,1844.1,2.08402]
[1746131622633,1.08399,1844.2,1844.1,1.08402]
[1746131622832,1.08399,1844.2,1844.1,41.88402]
[1746131623131,2.70955,1844.5,1844.2,1.08395]
[1746131623322,5.91723,1844.6,1844.4,1.08383]
[1746131623524,1.08387,1844.5,1844.4,1.08383]
[1746131624534,1.08387,1844.4,1844.3,4.73893]
[1746131626539,1.08387,1844.4,1844.3,3.655]
[1746131626836,1.08387,1844.4,1844.3,4.73893]
[1746131626837,4.29167,1844.4,1844.3,4.73893]
[1746131627036,1.08399,1844.2,1844.1,3.655]
[1746131627335,4.29179,1844.2,1844.1,4.73905]
[1746131630133,4.29179,1844.2,1843.8,1.08419]
[1746131630134,1.08422,1843.9,1843.8,1.08419]
[1746131630331,4.29196,1844.0,1843.9,1.08416]
[1746131630839,4.29196,1844.0,1843.9,41.88416]
[1746131631038,1.08416,1844.0,1843.9,41.88416]
[1746131632037,4.29196,1844.0,1843.9,41.88416]
[1746131632737,1.08416,1843.9,1843.8,3.655]
[1746131633138,10.838,1843.9,1843.5,3.2078]
[1746131633339,3.2078,1843.6,1843.5,3.655]
[1746131633533,5.838,1843.9,1843.8,1.08422]
[1746131634040,1.08425,1843.8,1843.7,4.74024]
[1746131634239,1.08422,1843.8,1843.7,3.656]
[1746131635040,3.2078,1843.9,1843.7,3.656]
[1746131635233,1.08422,1843.8,1843.7,4.74026]
[1746131635931,4.292,1843.9,1843.8,1.08422]
[1746131636144,1.08422,1843.8,1843.7,3.656]
[1746131636343,1.08422,1843.8,1843.7,4.74028]
[1746131637441,1.08452,1843.3,1843.2,1.0845]
[1746131637746,1.08449,1843.4,1843.3,1.08447]
[1746131637945,4.29229,1843.4,1843.3,41.88447]
[1746131638146,3.2078,1843.4,1843.3,41.88447]
[1746131638346,1.08443,1843.5,1843.3,41.88447]
[1746131638347,1.08441,1843.5,1843.4,1.08446]
[1746131638744,4.29219,1843.6,1843.5,1.0844]
[1746131639146,3.2078,1843.6,1843.3,40.8]
[1746131639349,1.08446,1843.4,1843.3,41.88446]
[1746131639747,1.08444,1843.5,1843.4,1.08442]
[1746131640251,4.29219,1843.6,1843.5,1.0844]
[1746131640644,4.29219,1843.6,1843.5,4.7404]
[1746131641050,4.29219,1843.6,1843.5,3.656]
[1746131641447,9.0458,1843.6,1843.1,3.656]
[1746131641748,1.08444,1843.5,1843.4,1.08442]
[1746131641950,9.0458,1843.6,1843.5,1.0844]
[1746131642654,1.08427,1843.8,1843.7,1.08422]
[1746131642844,3.2078,1844.1,1844.0,1.0841]
[1746131643149,3.2078,1844.1,1844.0,4.8661]
[1746131643754,6.80035445,1844.1,1844.0,4.8661]
[1746131644450,6.80035445,1844.1,1844.0,5.6814]
[1746131644645,6.80035445,1844.1,1844.0,7.3573]
[1746131644847,3.59255445,1844.1,1844.0,12.3573]
[1746131645651,5.34565694,1844.2,1844.1,1.08405]
[1746131645953,5.34565694,1844.2,1844.1,2.75995]
[1746131646152,7.17552449,1844.4,1844.3,1.08393]
[1746131646345,7.17552449,1844.4,1844.3,4.86693]
[1746131646554,7.17552449,1844.4,1844.3,5.86593]
[1746131646851,7.17552449,1844.4,1844.3,7.35713]
[1746131647051,7.17552449,1844.4,1844.3,56.36493]
[1746131647248,1.08365,1844.8,1844.7,1.08369]
[1746131647455,1.5852,1844.8,1844.7,4.86569]
[1746131647751,3.2078,1844.9,1844.7,3.782]
[1746131647951,1.08363,1844.8,1844.7,3.782]
[1746131648253,2.77013,1844.8,1844.7,3.782]
[1746131649454,1.6865,1844.8,1844.7,4.86569]
[1746131649857,1.6865,1844.8,1844.7,6.60779]
[1746131650648,2.77013,1844.8,1844.7,6.60779]
[1746131651158,4.29139,1844.9,1844.8,1.08363]
[1746131651458,5.89189,1844.9,1844.8,1.08363]
[1746131651657,5.89189,1844.9,1844.8,1.6032]
[1746131652458,5.89189,1844.9,1844.8,2.68683]
[1746131652958,0.821,1845.0,1844.9,1.08358]
[1746131652959,1.90456,1845.0,1844.9,1.08358]
[1746131653158,1.90456,1845.0,1844.9,2.68678]
[1746131653359,3.54517,1845.1,1845.0,1.08352]
[1746131653554,14.21625,1845.1,1844.4,3.57468]
[1746131653760,14.21625,1845.1,1844.7,3.781]
[1746131653761,1.08363,1844.8,1844.7,3.781]
[1746131653969,1.5877,1845.0,1844.7,3.781]
[1746131654259,2.67126,1845.0,1844.9,1.08358]
[1746131654461,1.08358,1844.9,1844.8,2.3888]
[1746131654661,1.08358,1844.9,1844.8,0.7912]
[1746131654964,4.29138,1844.9,1844.8,1.87479]
[1746131655156,3.2078,1844.9,1844.8,1.87479]
[1746131655352,1.5877,1845.0,1844.8,0.7912]
[1746131655555,6.6992,1845.1,1845.0,1.08352]
[1746131655865,1.95462,1845.2,1845.1,1.08346]
[1746131656161,2.67109,1845.3,1845.2,1.05110241]
[1746131656366,2.70852,1845.2,1844.6,3.2078]
[1746131656559,1.08364,1844.9,1844.8,4.86462]
[1746131656860,1.08357,1845.0,1844.9,1.08356]
[1746131657060,2.69157,1845.0,1844.9,1.08356]
[1746131658662,1.08358,1844.9,1844.8,5.67359]
[1746131660367,2.70909,1844.8,1844.4,3.2078]
[1746131660572,1.08379,1844.6,1844.5,1.08378]
[1746131660964,2.81199,1844.6,1844.5,41.88378]
[1746131663066,5.91719,1844.6,1843.9,10.4328974]
[1746131663366,1.08408,1844.1,1844.0,1.0841]
[1746131663666,1.08408,1844.1,1844.0,44.581]
[1746131663867,1.0841,1844.0,1843.9,8.3092074]
[1746131664065,4.29189,1844.1,1844.0,1.0841]
[1746131664269,1.08409,1844.1,1844.0,1.0841]
[1746131664566,1.0841,1844.0,1843.9,3.781]
[1746131664866,1.0841,1844.0,1843.6,61.9532974]
[1746131664867,1.08422,1843.8,1843.7,1.08427]
[1746131665064,1.08421,1843.9,1843.8,1.08421]
[1746131665467,2.5017,1844.0,1843.7,44.581]
[1746131665768,1.08418,1843.9,1843.8,1.08417]
[1746131665965,1.08428,1843.7,1843.6,7.2250974]
[1746131666166,1.6554,1843.8,1843.6,7.2250974]
[1746131666469,4.29208,1843.7,1843.6,7.2250974]
[1746131666768,1.08428,1843.7,1843.6,8.3094374]
[1746131666964,1.08428,1843.7,1843.6,7.2250974]
[1746131667963,1.6554,1843.7,1843.6,1.08434]
[1746131668162,4.0321,1844.0,1843.5,40.8]
[1746131668465,1.6554,1843.9,1843.8,1.08422]
[1746131668667,2.73957,1843.9,1843.8,4.86622]
[1746131668862,1.08415,1844.0,1843.9,1.08416]
[1746131669169,2.75369,1844.1,1844.0,1.0841]
[1746131669562,1.6696,1844.1,1844.0,1.0841]
[1746131669770,5.11513,1844.2,1844.1,1.08405]
[1746131669970,5.11513,1844.2,1844.1,4.86605]
[1746131670162,4.29183,1844.2,1844.1,4.86605]
[1746131670362,3.2078,1844.2,1844.1,4.86605]
[1746131671268,4.29179,1844.2,1844.1,4.86605]
[1746131671472,1.08399,1844.2,1844.1,4.86605]
[1746131671666,1.08405,1844.1,1843.8,1.08422]
[1746131671966,6.76075,1844.1,1843.7,1.6482]
[1746131672167,2.4689,1844.1,1843.8,40.8]
[1746131672470,1.08413,1844.0,1843.9,2.67622]
[1746131672665,1.08413,1844.0,1843.9,6.45822]
[1746131672969,3.55298,1844.1,1844.0,1.0841]
[1746131673165,1.08404,1844.2,1844.1,1.08403]
[1746131673471,1.08407,1844.1,1844.0,1.08405]
[1746131674376,2.70394,1844.2,1844.1,1.08405]
[1746131674665,2.70394,1844.2,1843.9,6.49241]
[1746131674666,2.70998,1844.2,1843.6,3.2078]
[1746131674872,5.15822,1844.1,1843.7,3.857]
[1746131675067,1.08422,1843.9,1843.8,4.94121]
[1746131675370,1.08422,1843.9,1843.8,45.74121]
[1746131676372,1.08422,1843.9,1843.8,44.657]
[1746131676572,2.76072,1843.9,1843.8,44.657]
[1746131677473,2.76072,1843.9,1843.8,45.74122]
[1746131677776,2.76072,1843.9,1843.8,44.657]
[1746131677975,1.6765,1843.9,1843.8,45.74122]
[1746131678176,0.8502,1844.0,1843.9,1.08416]
[1746131678869,1.93435,1844.0,1843.9,1.08416]
[1746131679576,1.08416,1843.9,1843.8,45.74116]
[1746131680372,11.75581,1844.2,1843.8,44.657]
[1746131680673,1.08407,1844.1,1844.0,1.08405]
[1746131680875,4.29183,1844.2,1844.1,1.08405]
[1746131683279,1.08403,1844.2,1844.1,1.08405]
[1746131683978,1.08397,1844.3,1844.2,1.08394]
[1746131685679,1.08401,1844.2,1844.1,1.08399]
[1746131685880,1.08405,1844.1,1844.0,4.94106]
[1746131686573,1.08402,1844.2,1844.1,1.08405]
[1746131687078,2.80432,1844.2,1844.1,1.08405]
[1746131690079,1.08399,1844.3,1844.2,1.08395]
[1746131692080,1.08399,1844.3,1844.2,1.87935]
[1746131694681,1.08399,1844.2,1844.1,3.5989]
[1746131701281,1.08399,1844.2,1844.1,2.80905]
[1746131701486,1.91789,1844.2,1844.1,2.80905]
[1746131701680,3.52099,1844.2,1844.1,2.80905]
[1746131703388,1.08398,1844.3,1844.2,1.08393]
[1746131703589,1.08398,1844.3,1844.2,2.75493]
[1746131704087,1.08427,1843.8,1843.7,1.08425]
[1746131704289,1.08428,1843.7,1843.6,9.72409]
[1746131704488,1.08427,1843.8,1843.7,1.08428]
[1746131704885,2.81207,1843.8,1843.7,1.08428]
[1746131705092,1.08428,1843.7,1843.6,48.8531]
[1746131710494,1.7278,1843.8,1843.7,1.08428]
[1746131710495,2.81208,1843.8,1843.7,1.08428]
[1746131711292,1.08428,1843.8,1843.7,1.08428]
[1746131711503,1.88131,1843.9,1843.8,1.08422]
[1746131712090,1.08421,1843.9,1843.8,1.08422]
[1746131716701,1.08428,1843.8,1843.7,1.08425]
[1746131719509,1.08421,1843.9,1843.8,1.08422]
[1746131722599,1.08421,1843.9,1843.8,1.93252]
[1746131723906,1.08422,1843.8,1843.7,2.66663]
[1746131724107,2.81812,1843.8,1843.7,2.66663]
[1746131724608,4.29201,1843.9,1843.8,1.08422]
[1746131724810,4.29201,1843.9,1843.8,2.66292]
[1746131726103,12.28877307,1844.3,1844.2,1.08399]
[1746131726303,6.45077307,1844.3,1844.2,4.84599]
[1746131726504,8.18467307,1844.3,1844.2,4.84599]
[1746131727805,2.70998,1844.2,1843.7,3.2078]
[1746131728003,1.08416,1843.9,1843.8,3.762]
[1746131728508,4.42196,1843.9,1843.8,3.762]
[1746131730313,4.42196,1843.9,1843.8,4.84622]
[1746131731404,4.42196,1843.9,1843.6,7.2250974]
[1746131731608,4.29208,1843.7,1843.6,7.2250974]
[1746131732109,4.29208,1843.7,1843.3,54.459]
[1746131732110,1.08446,1843.4,1843.3,54.459]
[1746131732916,2.73166,1843.4,1843.3,54.459]
[1746131733512,2.73166,1843.4,1843.3,50.697]
[1746131733810,2.73166,1843.4,1843.3,54.457]
[1746131735411,1.08446,1843.4,1843.3,57.16312]
[1746131735613,1.91992,1843.5,1843.4,1.08446]
[1746131735806,1.91992,1843.5,1843.4,3.50376]
[1746131736808,1.08432,1843.7,1843.6,1.08434]
[1746131737015,1.08432,1843.7,1843.6,4.84434]
[1746131737313,5.36679307,1843.8,1843.7,1.08428]
[1746131737512,6.45101307,1843.8,1843.7,2.71298]
[1746131738512,5.36679307,1843.8,1843.7,2.71298]
[1746131738714,6.45101307,1843.8,1843.7,2.71298]
[1746131738908,5.36679307,1843.8,1843.7,2.71298]
[1746131740207,6.45101307,1843.8,1843.7,2.71298]
[1746131740414,5.36679307,1843.8,1843.7,2.71298]
[1746131740607,6.92218,1843.9,1843.8,1.08422]
[1746131741412,1.08407,1844.1,1844.0,1.08406]
[1746131741613,1.08407,1844.1,1844.0,4.84406]
[1746131741913,1.08407,1844.1,1844.0,3.76]
[1746131742113,1.08407,1844.1,1844.0,4.8441]
[1746131744609,10.838,1844.1,1843.6,3.76]
[1746131744809,1.08434,1843.6,1843.5,0.27]
[1746131745010,1.0844,1843.5,1843.4,10.9850974]
[1746131745218,1.9059,1843.5,1843.4,10.9850974]
[1746131745720,3.6459,1843.5,1843.4,10.9850974]
[1746131746018,6.8537,1843.5,1843.4,7.2250974]
[1746131746214,11.8537,1843.5,1843.4,7.2250974]
[1746131748116,16.6073,1843.5,1843.3,10.79841863]
[1746131748318,1.08446,1843.4,1843.3,8.58655863]
[1746131748517,2.65986,1843.4,1843.3,4.90440863]
[1746131748717,1.08487,1842.7,1842.6,4.84491]
[1746131749417,2.66027,1842.7,1842.6,4.84491]
[1746131749723,1.5754,1842.7,1842.6,4.84491]
[1746131750017,3.2078,1842.8,1842.7,1.08487]
[1746131750216,4.29261,1842.8,1842.7,1.08487]
[1746131750419,5.86801,1842.8,1842.7,1.08487]
[1746131750614,1.08487,1842.7,1842.6,3.76]
[1746131750827,2.66027,1842.7,1842.6,3.76]
[1746131756129,1.08506,1842.4,1842.2,3.761]
[1746131756323,1.08508,1842.4,1842.2,3.761]
[1746131756527,1.08517,1842.2,1842.0,44.0078]
[1746131756822,1.08517,1842.2,1842.1,5.3689]
[1746131757219,1.6733,1842.3,1842.1,5.3689]
[1746131757524,1.08516,1842.2,1842.1,5.3689]
[1746131759332,3.2078,1842.3,1842.1,6.45408]
[1746131759629,3.2078,1842.3,1842.2,2.76226]
[1746131761734,3.2078,1842.3,1842.2,3.56856]
[1746131762634,3.2078,1842.3,1842.2,5.4391]
[1746131762833,3.2078,1842.3,1842.2,6.52426]
[1746131763731,6.92305,1842.4,1842.2,6.52426]
[1746131763931,5.838,1842.4,1842.3,2.72981]
[1746131764134,6.92305,1842.4,1842.3,2.72981]
[1746131764729,5.838,1842.4,1842.3,2.72981]
[1746131764926,5.838,1842.4,1842.2,3.762]
[1746131764927,1.08528,1842.1,1842.0,3.767]
[1746131765121,1.08534,1841.9,1841.8,3.767]
[1746131765326,3.2078,1841.9,1841.8,6.4971]
[1746131768032,5.838,1842.2,1841.9,5.42661]
[1746131768233,5.838,1842.2,1842.1,1.08522]
[1746131768534,5.838,1842.2,1842.1,45.65222]
[1746131768840,1.08511,1842.3,1842.2,1.08516]
[1746131769028,10.13089,1842.4,1842.3,1.08511]
[1746131769434,1.08511,1842.3,1842.2,2.77504]
[1746131769633,1.08511,1842.3,1842.2,1.6899]
[1746131770439,2.71251,1842.3,1842.2,2.77506]
[1746131773841,1.08522,1842.1,1842.0,3.768]
[1746131774045,4.29302,1842.1,1842.0,4.85328]
[1746131774242,6.86612,1842.1,1842.0,3.768]
[1746131774541,6.86612,1842.1,1842.0,4.85328]
[1746131774742,12.70412,1842.1,1842.0,4.85328]
[1746131775042,5.838,1842.1,1842.0,4.85328]
[1746131775242,6.92322,1842.1,1842.0,4.85328]
[1746131775542,6.92322,1842.1,1842.0,6.52958]
[1746131776240,10.13102,1842.1,1842.0,6.52958]
[1746131776442,6.92322,1842.1,1842.0,6.52958]
[1746131776839,5.838,1842.1,1842.0,6.52958]
[1746131777542,6.92322,1842.1,1842.0,6.52958]
[1746131780244,10.13102,1842.1,1842.0,6.52958]
[1746131780838,11.73192,1842.1,1842.0,6.52958]
[1746131782839,11.73192,1842.1,1842.0,4.85328]
[1746131783945,8.52412,1842.1,1842.0,4.85328]
[1746131784350,6.92322,1842.1,1842.0,4.85328]
[1746131785448,5.838,1842.1,1842.0,4.85328]
[1746131785644,6.92322,1842.1,1842.0,4.85328]
[1746131786455,1.08522,1842.1,1842.0,4.85328]
[1746131789353,4.29302,1842.1,1842.0,4.85328]
[1746131789554,4.29302,1842.1,1842.0,3.768]
[1746131789855,4.29302,1842.1,1842.0,4.85328]
[1746131790344,4.29302,1842.1,1842.0,3.768]
[1746131791051,1.08546,1841.8,1841.7,3.768]
[1746131791253,1.08546,1841.8,1841.7,4.8534]
[1746131791560,1.08546,1841.8,1841.7,6.5611]
[1746131791947,3.2078,1841.9,1841.8,1.0854]
[1746131792150,3.2078,1841.9,1841.8,3.6039]
[1746131793757,4.29314,1841.9,1841.8,3.6039]
[1746131794453,4.29314,1841.9,1841.8,2.7931]
[1746131795559,3.2078,1841.9,1841.8,2.7931]
[1746131796058,4.29314,1841.9,1841.8,2.7931]
[1746131796562,3.2078,1841.9,1841.8,2.7931]
[1746131796953,4.29314,1841.9,1841.8,2.7931]
[1746131797453,1.08532,1842.0,1841.9,1.08534]
[1746131798554,15.27853092,1842.1,1842.0,1.08528]
[1746131798754,13.68803092,1842.1,1842.0,1.08528]
[1746131799151,10.48023092,1842.1,1842.0,1.89128]
[1746131799960,13.68803092,1842.1,1842.0,1.89128]
[1746131800259,13.68803092,1842.1,1842.0,5.62528]
[1746131800759,10.13106,1842.1,1842.0,5.62528]
[1746131800959,6.92326,1842.1,1842.0,5.62528]
[1746131801149,1.08526,1842.1,1842.0,5.62528]
[1746131801556,4.29306,1842.1,1842.0,5.62528]
[1746131802653,1.08526,1842.1,1842.0,5.62528]
[1746131802959,4.29306,1842.1,1842.0,5.62528]
[1746131803160,1.08526,1842.1,1842.0,5.62528]
[1746131803560,4.29306,1842.1,1842.0,3.734]
[1746131803764,6.02046,1842.1,1842.0,3.734]
[1746131804460,6.02046,1842.1,1842.0,4.81928]
[1746131804761,6.02046,1842.1,1842.0,3.734]
[1746131805160,6.02046,1842.1,1842.0,4.81928]
[1746131806863,4.29306,1842.1,1842.0,4.81928]
[1746131807262,5.91066,1842.1,1842.0,4.81928]
[1746131808464,4.29306,1842.1,1842.0,4.81928]
[1746131808664,1.08526,1842.1,1842.0,4.81928]
[1746131808864,4.29306,1842.1,1842.0,4.81928]
[1746131809669,8.54201044,1842.1,1842.0,4.81928]
[1746131810060,8.54201044,1842.1,1842.0,3.734]
[1746131810261,10.13791044,1842.1,1842.0,4.81928]
[1746131811771,10.13791044,1842.1,1842.0,3.734]
[1746131813370,11.94773259,1842.1,1842.0,3.734]
[1746131816767,5.42643,1842.0,1841.4,5.92179]
[1746131816968,1.08558,1841.6,1841.5,6.47075]
[1746131817366,1.08558,1841.6,1841.5,47.27075]